[Event "European Rapid Championship 2021"]
[Site "Katowice"]
[Date "2021.12.19"]
[Round "11.30"]
[White "Sharankov, Grigory"]
[Black "Janeczko, Jakub"]
[Result "1/2-1/2"]
[ECO "B36"]
[WhiteElo "2220"]
[BlackElo "1900"]
[Annotator "NA"]
[PlyCount "120"]
[EventDate "2021.12.18"]
[EventType "swiss"]
[EventCountry "POL"]
[SourceTitle "playchess.com"]
[Source "ChessBase"]
[SourceQuality "1"]
[TimeControl "900+10"]

1. c4 {[%emt 0:00:02]} c5 {[%emt 0:00:05]} 2. Nf3 {[%emt 0:00:02]} Nf6 {
[%emt 0:00:02]} 3. d4 {[%emt 0:00:02]} cxd4 {[%emt 0:00:03]} 4. Nxd4 {[%emt 0:
00:02]} Nc6 {[%emt 0:00:04]} 5. Nc3 {[%emt 0:00:01]} g6 {[%emt 0:00:02]} 6. e4
{[%emt 0:00:21]} Nxd4 {[%emt 0:00:02]} 7. Qxd4 {[%emt 0:00:02]} d6 {[%emt 0:00:
02]} 8. g3 {[%emt 0:01:26]} Bg7 {[%emt 0:00:04]} 9. Bg2 {[%emt 0:00:02]} O-O {
[%emt 0:00:08]} 10. Qd3 {[%emt 0:00:50]} a5 {[%emt 0:00:18]} 11. O-O {[%emt 0:
00:10]} a4 {[%emt 0:00:02]} 12. Rb1 {[%emt 0:00:25]} Qa5 {[%emt 0:00:32]} 13.
Nb5 {[%emt 0:01:08]} Nd7 {[%emt 0:00:38]} 14. Bd2 {[%emt 0:00:23]} Nc5 {
[%emt 0:00:56]} 15. Qe3 {[%emt 0:01:07]} Qb6 {[%emt 0:00:07]} 16. Bc3 {[%emt 0:
00:01]} Be6 {[%emt 0:00:05]} 17. Bxg7 {[%emt 0:00:25]} Kxg7 {[%emt 0:00:02]}
18. Nd4 {[%emt 0:01:25]} Qb4 {[%emt 0:01:07]} 19. b3 {[%emt 0:01:12]} axb3 {
[%emt 0:00:02]} 20. axb3 {[%emt 0:00:00]} Ra2 {[%emt 0:00:19]} 21. e5 {[%emt 0:
00:11]} Qd2 {[%emt 0:04:22]} 22. exd6 {[%emt 0:03:57]} Qxe3 {[%emt 0:00:17]}
23. fxe3 {[%emt 0:00:01]} exd6 {[%emt 0:00:02]} 24. b4 {[%emt 0:00:17]} Bxc4 {
[%emt 0:01:05]} 25. bxc5 {[%emt 0:01:12]} Bxf1 {[%emt 0:00:03]} 26. Kxf1 {
[%emt 0:00:42]} dxc5 {[%emt 0:00:03]} 27. Ne2 {[%emt 0:00:01]} Ra3 {[%emt 0:01:
00]} 28. Rxb7 {[%emt 0:00:48]} Rxe3 {[%emt 0:00:05]} 29. Rc7 {[%emt 0:00:16]}
Re5 {[%emt 0:00:11]} 30. Nf4 {[%emt 0:00:11]} Rd8 {[%emt 0:00:10]} 31. Bf3 {
[%emt 0:00:54]} h5 {[%emt 0:01:17]} 32. Be2 {[%emt 0:00:10]} Rd4 {[%emt 0:00:
15]} 33. h4 {[%emt 0:00:08]} Kf8 {[%emt 0:00:55]} 34. Rc8+ {[%emt 0:00:18]} Ke7
{[%emt 0:00:13]} 35. Bb5 {[%emt 0:01:19]} Kf6 {[%emt 0:03:02]} 36. Rc7 {
[%emt 0:00:09]} g5 {[%emt 0:01:32]} 37. hxg5+ {[%emt 0:01:12]} Rxg5 {[%emt 0:
00:44]} 38. Rc6+ {[%emt 0:00:04]} Ke7 {[%emt 0:00:08]} 39. Ne2 {[%emt 0:00:09]}
Rb4 {[%emt 0:00:17]} 40. Bd3 {[%emt 0:00:05]} h4 {[%emt 0:00:09]} 41. gxh4 {
[%emt 0:00:04]} Rxh4 {[%emt 0:00:03]} 42. Kf2 {[%emt 0:00:17]} Rd5 {[%emt 0:00:
26]} 43. Bb5 {[%emt 0:00:24]} Rb4 {[%emt 0:00:17]} 44. Ba6 {[%emt 0:00:22]} Rd6
{[%emt 0:00:13]} 45. Rc7+ {[%emt 0:00:01]} Kd8 {[%emt 0:00:03]} 46. Rc8+ {
[%emt 0:00:03]} Kd7 {[%emt 0:00:01]} 47. Ra8 {[%emt 0:00:03]} c4 {[%emt 0:00:
33]} 48. Ra7+ {[%emt 0:00:31]} Ke6 {[%emt 0:00:20]} 49. Bc8+ {[%emt 0:00:01]}
Ke5 {[%emt 0:00:06]} 50. Rc7 {[%emt 0:00:03]} Rd2 {[%emt 0:00:39]} 51. Ke3 {
[%emt 0:00:14]} Rd3+ {[%emt 0:00:09]} 52. Kf2 {[%emt 0:00:02]} Rd2 {[%emt 0:00:
09]} 53. Ke3 {[%emt 0:00:15]} Rd3+ {[%emt 0:00:01]} 54. Kf2 {[%emt 0:00:01]}
Rd2 {[%emt 0:00:01]} 55. Ba6 {[%emt 0:00:18]} Ra4 {[%emt 0:00:29]} 56. Bxc4 {
[%emt 0:00:21]} Rc2 {[%emt 0:00:03]} 57. Re7+ {[%emt 0:00:02]} Kd6 {[%emt 0:00:
09]} 58. Bb3 {[%emt 0:00:21]} Kxe7 {[%emt 0:00:25]} 59. Bxc2 {[%emt 0:00:02]}
Ra2 {[%emt 0:00:01]} 60. Bd3 {[%emt 0:00:03]} Rxe2+ {[%emt 0:00:02]} 1/2-1/2